Cogmind - Beta 11 X7 --- EXPLORER MODE // 2021.10.05 @ 14:14:17 // Winter2019/RPGLIKE Player: jfk Result: Destroyed by S-27 Virus with Autogun Performance ------------- Evolutions (3) 1500 Regions Visited (8) 1600 Robots Destroyed (33) 165 Value Destroyed (783) 783 Prototype IDs (23) 460 Alien Tech Used (0) 0 Bonus (313) 313 TOTAL SCORE: 4821 Bonus ------- High Alert Combat Kills 13 Aligned with FarCom 300 Cogmind --------- Core Integrity 0/600 Matter 250/300 Energy 1720/1720 System Corruption 0% Temperature Cool (0) Movement Rolling (90) Location -7/Factory Parts ------- > --- POWER (2) -------- Light Nuclear Core Light Nuclear Core > --- PROPULSION (3) --- Armored Wheel Armored Wheel Armored Wheel > --- UTILITY (6) ------ Superbattery Cloak of Protection Trap Reconfigurator > --- WEAPON (2) ------- Grenade Launcher Maul > --- INVENTORY (5) ---- Powered Hammer Peak State ------------ > --- POWER ------------ Light Nuclear Core Light Nuclear Core > --- PROPULSION ------- Armored Wheel Armored Wheel Armored Wheel > --- UTILITY ---------- Superbattery Cloak of Protection Trap Reconfigurator > --- WEAPON ----------- Maul Powered Hammer > --- INVENTORY -------- Protomatter Protomatter Grenade Launcher [Rating: 45] Favorites ----------- Power Light Nuclear Core Engine Light Ion Engine Power Core Light Nuclear Core Propulsion Armored Wheel Wheel Armored Wheel Flight Unit VTOL Module Utility Superbattery Device Cloak of Protection Storage Superbattery Weapon Maul Energy Gun Small Laser Launcher Grenade Launcher Impact Weapon Maul Build | -11 -10 -10 -9 -9 -9 -8 -8 -7 ------- Run | Scr Mat Min Mat Min Exi Min Mat Fac Slots Evolved 9 | . . . . . . . 9 . Power 1 | . . . . . . . 1 . Propulsion 2 | . . . . . . . 2 . Utility 5 | . . . . . . . 5 . Weapon 1 | . . . . . . . 1 . Parts Attached 19 | . 5 . . 2 . . 8 4 Power 3 | . 1 . . . . . 1 1 Engine 1 | . 1 . . . . . . . Core 2 | . . . . . . . 1 1 Reactor . | . . . . . . . . . Propulsion 5 | . 2 . . . . . 3 . Treads . | . . . . . . . . . Leg . | . . . . . . . . . Wheel 3 | . . . . . . . 3 . Hover . | . . . . . . . . . Flight 2 | . 2 . . . . . . . Utility 3 | . . . . . . . 3 . Device 2 | . . . . . . . 2 . Storage 1 | . . . . . . . 1 . Processor . | . . . . . . . . . Hackware . | . . . . . . . . . Protection . | . . . . . . . . . Artifact . | . . . . . . . . . Weapon 8 | . 2 . . 2 . . 1 3 Energy Gun 1 | . 1 . . . . . . . Energy Cannon . | . . . . . . . . . Ballistic Gun . | . . . . . . . . . Ballistic Cannon . | . . . . . . . . . Launcher 3 | . . . . 1 . . . 2 Special Weapon . | . . . . . . . . . Impact Weapon 4 | . 1 . . 1 . . 1 1 Slashing Weapon . | . . . . . . . . . Piercing Weapon . | . . . . . . . . . Special Melee Weapon . | . . . . . . . . . Unidentified Prototypes . | . . . . . . . . . Parts Lost . | . . . . . . . . . Power . | . . . . . . . . . Propulsion . | . . . . . . . . . Utility . | . . . . . . . . . Weapon . | . . . . . . . . . Highest Loss Streak . | . . . . . . . . . Average Slot Usage (%) 56 | . 43 50 50 50 50 50 61 72 Core 3 | . . . . . . . 4 11 Wheel 7 | . . . . . . . 16 23 Flight 15 | . 14 25 25 25 25 25 6 . Device 5 | . . . . . . . 10 15 Storage 2 | . . . . . . . 4 7 Impact Weapon 20 | . 8 25 25 25 25 25 17 14 Naked Turns 4 | . 4 . . . . . . . Heaviest Build 29 | . 4 3 3 3 3 3 24 29 Greatest Support 36 | 3 4 4 4 4 4 4 36 36 Greatest Overweight (x) 1 | . 1 . . . . . . . Average Overweight (x) . | . . . . . . . . . Largest Inventory Capacity 5 | . . 4 4 4 5 5 5 5 Average Capacity 4 | . . 3 4 4 4 5 5 5 Most Carried 5 | . . 1 1 2 5 5 5 3 Average Carried 1 | . . . 1 1 4 5 2 1 Final Capacity 5 | . . 4 4 4 5 5 5 5 Final Carried 5 | . . 1 1 2 5 5 1 1 Class Distribution -------------------- 100% | Hacker-Mutant Dominant Class ---------------- Hacker-Mutant | -10/Materials Hacker-Mutant | -10/Mines Hacker-Mutant | -9/Materials Hacker-Mutant | -9/Mines Hacker-Mutant | -9/Exiles Hacker-Mutant | -8/Mines Hacker-Mutant | -8/Materials Hacker-Mutant | -7/Factory Resources | -11 -10 -10 -9 -9 -9 -8 -8 -7 ----------- Run | Scr Mat Min Mat Min Exi Min Mat Fac Matter Collected 460 | 166 63 21 . 20 . . 80 110 Remotely . | . . . . . . . . . Salvage Created 785 | . 35 50 19 22 . . 316 343 Parts 38 | . 3 4 . 1 . . 9 21 Haulers Intercepted 1 | . . . . . . . 1 . Recyclers Shooed . | . . . . . . . . . Parts Field Recycled . | . . . . . . . . . Retrieved Matter . | . . . . . . . . . Parts Self-Destructed . | . . . . . . . . . Prevented . | . . . . . . . . . Kills | -11 -10 -10 -9 -9 -9 -8 -8 -7 ------- Run | Scr Mat Min Mat Min Exi Min Mat Fac Combat Hostiles Destroyed 23 | . 2 4 . 4 . . 5 8 Melee 11 | . . 2 . 1 . . 4 4 Guns 2 | . 2 . . . . . . . AOE 3 | . . . . . . . . 3 Classes Destroyed 8 | . 1 . 1 . . . 3 3 Worker 2 | . . . . . . . . 2 Builder 2 | . . . . . . . . 2 Hauler 1 | . . . . . . . 1 . Recycler 3 | . . . . . . . 1 2 Operator 2 | . . . 1 . . . . 1 Swarmer 12 | . 2 4 . 4 . . . 2 Grunt 10 | . . . . . . . 5 5 Sentry 1 | . . . . . . . . 1 Best Kill Streak 5 | . 2 2 1 2 . . 4 5 Combat Bots Only 3 | . 2 2 . 2 . . 2 3 Max Kills in Single Turn 2 | . 1 1 1 1 . . 1 2 Gunslinging . | . . . . . . . . . Exploded 1 | . . . . . . . . 1 Melee 1 | . . 1 . 1 . . 1 1 Uniques/NPCs Destroyed . | . . . . . . . . . Combat | -11 -10 -10 -9 -9 -9 -8 -8 -7 -------- Run | Scr Mat Min Mat Min Exi Min Mat Fac Damage Taken 1409 | . 141 68 29 254 . . 349 568 Core 1171 | . 124 63 24 236 . . 268 456 Absorbed by Shields . | . . . . . . . . . Redirected to Core 732 | . 51 16 15 53 . . 251 346 Core Remaining (%) 56 | 100 . 78 . . . 35 12 . Volleys Fired 15 | . 3 . . . . . . 12 Largest 1 | . 1 . . . . . . 1 Hottest 40 | . 40 . . . . . . 30 Shots Fired 15 | . 3 . . . . . . 12 Gun 3 | . 3 . . . . . . . Cannon . | . . . . . . . . . Launcher 12 | . . . . . . . . 12 Special . | . . . . . . . . . Kinetic . | . . . . . . . . . Thermal 3 | . 3 . . . . . . . Explosive 12 | . . . . . . . . 12 Electromagnetic . | . . . . . . . . . Robot Hit Streak 10 | . 3 . . . . . . 10 Robot Miss Streak . | . . . . . . . . . Penetration Max . | . . . . . . . . . Secondary Targets . | . . . . . . . . . Shots Hit Robots 88 | . 9 9 2 9 . . 32 27 Core Hits 28 | . 2 2 . 1 . . 6 17 Critical Kills 2 | . . 1 . . . . . 1 Critical Parts Destroyed 5 | . . . . 1 . . 2 2 Critical Strikes 7 | . . 1 . 1 . . 2 3 Smash 7 | . . 1 . 1 . . 2 3 Melee Attacks 90 | . 6 11 5 13 . . 33 22 Impact 90 | . 6 11 5 13 . . 33 22 Slashing . | . . . . . . . . . Piercing . | . . . . . . . . . Sneak Attacks 6 | . . . . . . . 2 4 Combat Hostiles . | . . . . . . . . . Follow-up Attacks 4 | . . . . . . . 1 3 Damage Inflicted 3491 | . 185 193 75 206 . . 1048 1784 Guns 34 | . 34 . . . . . . . Cannons . | . . . . . . . . . Explosions 974 | . . . . . . . . 974 Melee 2458 | . 126 193 75 206 . . 1048 810 Ramming 25 | . 25 . . . . . . . Kinetic . | . . . . . . . . . Thermal 300 | . 34 . . . . . . 266 Explosive 708 | . . . . . . . . 708 Electromagnetic . | . . . . . . . . . Impact 2458 | . 126 193 75 206 . . 1048 810 Slashing . | . . . . . . . . . Piercing . | . . . . . . . . . Highest Corruption 2 | . 2 2 . . . . . . Average Corruption 2 | . 2 2 . . . . . . Corruption Purged . | . . . . . . . . . Effects 2 | . . 2 . . . . . . Message Errors 1 | . . 1 . . . . . . Energy Discharges 1 | . . 1 . . . . . . Overload Shots . | . . . . . . . . . Overflow Damage 694 | . . 18 19 40 . . 223 394 Projectiles . | . . . . . . . . . Explosions 152 | . . . . . . . . 152 Melee 542 | . . 18 19 40 . . 223 242 Knockbacks 9 | . . . 1 . . . 6 2 Impact 9 | . . . 1 . . . 6 2 Kinetic . | . . . . . . . . . Secondary . | . . . . . . . . . Self-Inflicted Damage 164 | . 25 . . . . . . 139 Shots 5 | . . . . . . . . 5 Rammed . | . . . . . . . . . Targets Rammed . | . . . . . . . . . Kicked . | . . . . . . . . . Crushed . | . . . . . . . . . Highest Temperature 15 | . 15 . . . . . . . Average Temperature 10 | . 10 . . . . . . . Received Heat Transfer 639 | . 108 . 27 . . . 324 180 Siege Activations . | . . . . . . . . . Robots Corrupted . | . . . . . . . . . Combat Hostiles . | . . . . . . . . . Parts Fried 13 | . . 1 2 3 . . 3 4 Impact Corruptions 27 | . . 3 1 6 . . 10 7 Robots Melted . | . . . . . . . . . Combat Hostiles . | . . . . . . . . . Parts Melted . | . . . . . . . . . Heat Transferred 225 | . 75 . . . . . . 150 Parts Sabotaged . | . . . . . . . . . Parts Stolen . | . . . . . . . . . Parts Stripped . | . . . . . . . . . Power Chain Reactions . | . . . . . . . . . Missiles Intercepted . | . . . . . . . . . Alert | -11 -10 -10 -9 -9 -9 -8 -8 -7 ------- Run | Scr Mat Min Mat Min Exi Min Mat Fac Peak Influence 521 | . 101 127 119 282 . . 204 521 Initial 67 | . . 27 34 32 . . . 67 Average 130 | . 71 60 66 149 . . 103 247 Maximum Alert Level 2 | . . . . 1 . . 1 2 Low Security (%) 79 | 100 100 100 100 70 . 100 93 45 Level 1 14 | . . . . 29 . . 6 35 Level 2 5 | . . . . . . . . 19 Level 3 . | . . . . . . . . . Level 4 . | . . . . . . . . . Level 5 . | . . . . . . . . . High Security . | . . . . . . . . . Max Security . | . . . . . . . . . Squads Dispatched 7 | . . . 2 1 . . . 4 Investigation 1 | . . . . 1 . . . . Extermination . | . . . . . . . . . Reinforcement 6 | . . . 2 . . . . 4 Assault . | . . . . . . . . . Garrison . | . . . . . . . . . Intercept . | . . . . . . . . . Construction Impeded 1 | . . . . . . . . 1 Haulers Reinforced 1 | . . . . . . . . 1 Active Scanning Responses . | . . . . . . . . . Cargo Convoy Interrupts . | . . . . . . . . . Stealth | -11 -10 -10 -9 -9 -9 -8 -8 -7 --------- Run | Scr Mat Min Mat Min Exi Min Mat Fac Distress Signals 3 | . . . . . . . 2 1 Communications Jammed . | . . . . . . . . . Distress Signals . | . . . . . . . . . Times Spotted 86 | . 9 4 10 30 . . 12 21 Peak Tracking Total 22 | . 6 2 6 22 . . 6 6 Tactical Retreats 11 | . . . 1 4 . . 2 4 Traps | -11 -10 -10 -9 -9 -9 -8 -8 -7 ------- Run | Scr Mat Min Mat Min Exi Min Mat Fac Traps Triggered 1 | . . . . . . . . 1 Indirectly . | . . . . . . . . . Trap Hack Attempts . | . . . . . . . . . Triggered . | . . . . . . . . . Disarmed . | . . . . . . . . . Reprogrammed . | . . . . . . . . . Reused . | . . . . . . . . . Traps Extracted . | . . . . . . . . . Installed . | . . . . . . . . . Triggered . | . . . . . . . . . Machines | -11 -10 -10 -9 -9 -9 -8 -8 -7 ---------- Run | Scr Mat Min Mat Min Exi Min Mat Fac Machines Disabled 3 | . . . . . . . . 3 Max in Single Turn 3 | . . . . . . . . 3 Machines Sabotaged . | . . . . . . . . . Garrisons Compromised . | . . . . . . . . . Overloaded Fab Kills . | . . . . . . . . . Fab Network Shutdowns . | . . . . . . . . . Hacking | -11 -10 -10 -9 -9 -9 -8 -8 -7 --------- Run | Scr Mat Min Mat Min Exi Min Mat Fac Machines Accessed 6 | . 1 . 1 1 1 . 1 1 Terminals 4 | . 1 . 1 . . . 1 1 Fabricators . | . . . . . . . . . Repair Stations . | . . . . . . . . . Recycling Units . | . . . . . . . . . Scanalyzers . | . . . . . . . . . Garrison Access . | . . . . . . . . . Total Hacks 8 | . 1 . 1 1 1 . 2 2 Successful 6 | . 1 . 1 1 1 . 1 1 Failed 2 | . . . . . . . 1 1 Catastrophic 1 | . . . . . . . 1 . Database Lockouts . | . . . . . . . . . Manual 7 | . 1 . 1 . 1 . 2 2 Terminals 6 | . 1 . 1 . . . 2 2 Fabricators . | . . . . . . . . . Repair Stations . | . . . . . . . . . Recycling Units . | . . . . . . . . . Scanalyzers . | . . . . . . . . . Garrison Access . | . . . . . . . . . Terminal Hacks 5 | . 1 . 1 1 1 . 1 . Open Door 1 | . . . . 1 . . . . Level Access Points 1 | . . . . . . . 1 . Branch Access Points 2 | . 1 . 1 . . . . . EX-Prototype ID Bank 1 | . . . . . 1 . . . Fabricator Hacks . | . . . . . . . . . Repair Station Hacks . | . . . . . . . . . Recycling Unit Hacks . | . . . . . . . . . Scanalyzer . | . . . . . . . . . Garrison Access Hacks . | . . . . . . . . . Unauthorized Hacks 1 | . . . . . . . . 1 Terminals 1 | . . . . . . . . 1 Assimilate 1 | . . . . . . . . 1 Fabricators . | . . . . . . . . . Repair Stations . | . . . . . . . . . Recycling Units . | . . . . . . . . . Scanalyzers . | . . . . . . . . . Garrison Access . | . . . . . . . . . Data Cores Recovered 1 | . . . 1 . . . . . Used 1 | . . . 1 . . . . . Hacking Detections 2 | . 1 . . . . . . 1 Full Trace Events . | . . . . . . . . . Feedback Events . | . . . . . . . . . Feedback Blocked . | . . . . . . . . . Robot Schematics Acquired . | . . . . . . . . . Robots Built . | . . . . . . . . . Matter . | . . . . . . . . . Time . | . . . . . . . . . Total Robot Build Rating . | . . . . . . . . . Part Schematics Acquired . | . . . . . . . . . Parts Built . | . . . . . . . . . Matter . | . . . . . . . . . Time . | . . . . . . . . . Total Part Build Rating . | . . . . . . . . . Parts Repaired . | . . . . . . . . . Time . | . . . . . . . . . Parts Recycled . | . . . . . . . . . Recycled Matter . | . . . . . . . . . Retrieved Matter . | . . . . . . . . . Retrieved Components . | . . . . . . . . . Parts Scanalyzed . | . . . . . . . . . Part Schematics Acquired . | . . . . . . . . . Parts Damaged . | . . . . . . . . . Bothacking | -11 -10 -10 -9 -9 -9 -8 -8 -7 ------------ Run | Scr Mat Min Mat Min Exi Min Mat Fac Used RIF Installer . | . . . . . . . . . Robots Hacked . | . . . . . . . . . Non-combat . | . . . . . . . . . Combat . | . . . . . . . . . Robot Hacks Applied . | . . . . . . . . . Relay Couplers Released . | . . . . . . . . . Robots Rewired . | . . . . . . . . . Allies Hacked . | . . . . . . . . . Hacks Repelled . | . . . . . . . . . Allies | -11 -10 -10 -9 -9 -9 -8 -8 -7 -------- Run | Scr Mat Min Mat Min Exi Min Mat Fac Total Allies 1 | . . . . . . . . 1 Largest Group 1 | . . . . . . . . 1 Highest-Rated Group 26 | . . . . . . . . 26 Highest-Rated Ally 26 | . . . . . . . . 26 Total Orders . | . . . . . . . . . Ally Attacks . | . . . . . . . . . Total Damage . | . . . . . . . . . Kills . | . . . . . . . . . Allies Corrupted . | . . . . . . . . . Allies Melted . | . . . . . . . . . Intel | -11 -10 -10 -9 -9 -9 -8 -8 -7 ------- Run | Scr Mat Min Mat Min Exi Min Mat Fac Robot Analysis Total . | . . . . . . . . . Derelict Logs Recovered 1 | . . 1 . . . . . . Drone Launches . | . . . . . . . . . Drone Recoveries . | . . . . . . . . . Exploration | -11 -10 -10 -9 -9 -9 -8 -8 -7 ------------- Run | Scr Mat Min Mat Min Exi Min Mat Fac Turns Passed 1623 | 14 116 320 96 164 241 53 216 403 Spaces Moved 2543 | 28 178 808 230 346 224 151 238 340 Core 124 | 28 96 . . . . . . . Treads . | . . . . . . . . . Legs . | . . . . . . . . . Wheels 406 | . . . . . . . 66 340 Hover . | . . . . . . . . . Flight 2013 | . 82 808 230 346 224 151 172 . Fastest Speed 35 | 50 35 35 35 35 35 35 35 90 Average Speed 44 | 50 45 35 35 35 35 35 50 90 Slowest Speed 100 | 50 100 35 35 35 35 35 90 90 Overloaded Moves . | . . . . . . . . . Propulsion Burnouts . | . . . . . . . . . Robots Hopped 24 | . 4 12 2 2 . 3 1 . Cave-ins Triggered . | . . . . . . . . . Exploration Rate (%) 44 | 2 34 96 28 83 62 62 24 12 Regions Visited 8 Branch Regions 4 Pre-discovered Areas 1 | . . 1 . . . . . . Known Exits Taken 8 | 1 1 1 1 1 1 1 1 . Unknown Exits Taken . | . . . . . . . . . Scrap Searched . | . . . . . . . . . Spaces Dug 6 | . . 1 3 . . . . 2 Terrain Destroyed 62 | . 1 1 3 . . . . 57 Melee 6 | . . 1 3 . . . . 2 Projectile . | . . . . . . . . . AOE 55 | . . . . . . . . 55 Terrain Rammed 2 | . 2 . . . . . . . Walls Destroyed 1 | . 1 . . . . . . . Machines Disabled . | . . . . . . . . . Actions | -11 -10 -10 -9 -9 -9 -8 -8 -7 --------- Run | Scr Mat Min Mat Min Exi Min Mat Fac Total 2845 | 27 192 810 232 360 385 147 292 400 Wait 170 | . . . . . 159 . 9 2 Move 2489 | 27 169 783 225 341 223 146 235 340 Hop 22 | . 4 12 2 2 . 1 1 . Pick Up 7 | . . 1 . . 3 . . 3 Fast Attach 12 | . 5 . . 1 . . 5 1 Attach 4 | . . . . 1 . . 3 . Detach 2 | . . . . 2 . . . . Swap 3 | . . . . . . . . 3 Drop 8 | . 3 . . . . . 2 3 Fire 15 | . 3 . . . . . . 12 Melee 85 | . 6 11 5 13 . . 31 19 Ram 2 | . 2 . . . . . . . Kick . | . . . . . . . . . Crush . | . . . . . . . . . Escape Stasis . | . . . . . . . . . Rewire . | . . . . . . . . . Trap . | . . . . . . . . . Miscellaneous 26 | . . 3 . . . . 6 17 Route ------- -11/Scrapyard -10/Materials -10/Mines (discovered 2 exits: *Mat x2) -9/Materials (discovered 2 exits: Mat / *Min) -9/Mines (discovered 2 exits: *Mat / *Exi) -9/Exiles -8/Mines -8/Materials (discovered 3 exits: *Fac x3) -7/Factory History --------- Turn | Location | Event 8 | -11/Scrapyard | Identified exit to Materials 8 | -11/Scrapyard | Discovered exit to Materials (range 15) 15 | -11/Scrapyard | Entered Materials 35 | -10/Materials | Identified exit to Mines 131 | -10/Materials | Entered Mines 191 | -10/Mines | Identified exit to Materials 191 | -10/Mines | Discovered exit to Materials (range 7) 195 | -10/Mines | YI-UF0 nonchalantly dropped a Grenade Launcher on the ground 295 | -10/Mines | Learned location of Storage (-8) 310 | -10/Mines | Build established: Hacker-Mutant 341 | -10/Mines | Learned 4 Materials zone layouts 410 | -10/Mines | Discovered exit to Materials (range 5) 451 | -10/Mines | Entered Materials 452 | -9/Materials | Identified exit to Materials 453 | -9/Materials | Reached level 2 453 | -9/Materials | Reached level 3 453 | -9/Materials | Reached level 4 525 | -9/Materials | Identified exit to Mines 547 | -9/Materials | Entered Mines 590 | -9/Mines | Discovered exit to Materials (range 7) 602 | -9/Mines | Assembled infested the area 607 | -9/Mines | Assisted by a Guerilla fighting off Assembled 609 | -9/Mines | Core integrity fell below 50% 665 | -9/Mines | Reached level 5 666 | -9/Mines | Met a Derelict shopkeep closing up shop 696 | -9/Mines | Received a Rocket Launcher from a helpful Derelict 709 | -9/Mines | Deemed a non-threat by the Exiles lab entrance 709 | -9/Mines | Identified exit to Exiles 709 | -9/Mines | Discovered exit to Exiles (range 5) 711 | -9/Mines | Entered Exiles 720 | -9/Exiles | Met 8R-AWN 726 | -9/Exiles | Met EX-HEX 737 | -9/Exiles | Met EX-BIN 742 | -9/Exiles | Aligned with FarCom system 742 | -9/Exiles | Given EX-Vault access code 751 | -9/Exiles | Opened EX-Vault 754 | -9/Exiles | Found Superbattery 756 | -9/Exiles | Found Cloak of Protection 787 | -9/Exiles | Found Trap Reconfigurator 925 | -9/Exiles | Warned to stay clear of 0b10 Research branches 934 | -9/Exiles | Met EX-DEC 946 | -9/Exiles | Identified exit to Mines 946 | -9/Exiles | Discovered exit to Mines (range 14) 952 | -9/Exiles | Stole three prototypes: Superbattery, Cloak of Protection, Trap Reconfigurator 952 | -9/Exiles | Entered Mines 1000 | -8/Mines | Discovered exit to Materials (range 15) 1005 | -8/Mines | Entered Materials 1006 | -8/Materials | Core integrity fell below 50% 1007 | -8/Materials | Reached level 6 1007 | -8/Materials | Reached level 7 1024 | -8/Materials | Identified exit to Factory 1068 | -8/Materials | Upgraded with Power slot (x1) 1068 | -8/Materials | Upgraded with Propulsion slot (x2) 1068 | -8/Materials | Upgraded with Utility slot (x5) 1068 | -8/Materials | Upgraded with Weapon slot (x1) 1103 | -8/Materials | Core integrity fell below 20% 1109 | -8/Materials | Reached level 8 1221 | -8/Materials | Entered Factory 1222 | -7/Factory | Core integrity fell below 50% 1222 | -7/Factory | Core integrity fell below 20% 1223 | -7/Factory | FarCom data flow suspended 1223 | -7/Factory | Reached level 9 1277 | -7/Factory | Reached level 10 1624 | -7/Factory | Destroyed by S-27 Virus with Autogun Last Messages --------------- 01568_ Destroyed Wheel. 01568_ K-01 Serf system corrupted by crushing effect. 01568_ Wheel fried. 01568_ K-01 Serf destroyed. 01570_ Acquired 20 matter. 01571_ K-01 Serf collects debris. 01577_ Acquired 21 matter. 01597_ Y-54 Guardian suffers critical hit (Smash). 01597_ Y-54 Guardian destroyed. 01600_ Acquired 5 matter. 01604_ ALERT: Hostiles spotted, dispatching reinforcements to Terminal F017. 01610_ Triggered Heavy Explosive Trap. 01610_ An explosion rips through the floor. 01611_ C-30 ARC bursts open, deploying its payload. 01611_ S-27 Virus unfolds itself. 01612_ Dropped Protomatter-45. 01616_ The unstable cave ceiling collapses. 01621_ Destroyed VTOL Module. 01623_ Destroyed Lgt. Nuclear Core. Map ----- +----------------------------------------------------+ | # #?????????????????????????????????????? | | # #?????????????????????????????????????? | | # #?????????????????????????????????????? | | # #?????????????????????????????????????? | | ##+## #?????????????????????????????????????? | | #?????????????????????????????????????? | | # #?????????????????????????????????????? | | # #?????????????????????????????????????? | | # #?????????????????????????????????????? | | #?????????????????????????????????????? | | # #?????????????????????????????????????? | | # ########+#####???###??????????????????? | | # ?? +?????????????????? | | # ??? #?????????????????? | | # ??? #?????????????????? | | ##### ??? +?????????????????? | | ????# ######## #?????????????????? | | ????# #/##### # #?????????????????? | | ##### # ###?############??? | | + # #??? | | ^ ### [= # [ #??? | | #?# % !% + #??? | | #?# ss*[ # #??? | | ^ #?# # #??? | | ####+###?# ##############??? | | ?????????# # @ #????????? | | ?????????########### """ #????????? | | ????????????????????# """ ?????????? | | ????????????????????### """ !??????????? | | ??????????????????????# # ??????????? | | ???????????????????????# # """ =?????????? | | ????????????????????????# # """ #????????? | | ????????????????????????# #? """ #????????? | | ????????????????????????# #? ?? #????????? | | ????????????????????????# #?####????????????? | | ????????????????????????? ??????????????????? | | ?????????????????????????o??????????????????? | | ?????????????????????????T??????????????????? | | ????????????????????????? ??????????????????? | | ????????????????????????? ??????????????????? | | ????????????????????????????????????????????? | | ????????????????????????????????????????????? | | ????????????????????????????????????????????? | | ????????????????????????????????????????????? | | ????????????????????????????????????????????? | | ????????????????????????????????????????????? | | ????????????????????????????????????????????? | | ????????????????????????????????????????????? | | ????????????????????????????????????????????? | | ????????????????????????????????????????????? | +----------------------------------------------------+ Best States ------------- Heat Dissipation 79 Energy Generation 23 Energy Capacity 1720 Matter Stores 300 Matter Capacity 300 Sight Range 16 Terrain Scan Density 10 Cloak Strength 5 Resistance: KI 35 Resistance: TH 35 Resistance: EX 35 Resistance: EM 35 Resistance: I 35 Resistance: S 35 Resistance: P 35 Evasion (%) 63 Offensive Hacking 20 Item Schematics ----------------- None Robot Schematics ------------------ None Fabricated ------------ Nothing Alien Tech Used ----------------- None Achievements -------------- None Challenges ------------ None RPGLIKE | -11 -10 -10 -9 -9 -9 -8 -8 -7 --------- Run | Scr Mat Min Mat Min Exi Min Mat Fac Levels Raised 9 | . . . 3 1 . . 3 2 XP Earned 20929 | 6000 280 1000 3367 1600 350 843 3453 4036 XP Spent 12720 | . . 2500 . . 1250 . 8970 . Upgrades 23 | . . 4 . . 1 . 18 . Power Slot 1 | . . . . . . . 1 . Propulsion Slot 2 | . . . . . . . 2 . Utility Slot 5 | . . . . . . . 5 . Weapon Slot 1 | . . . . . . . 1 . Heat Dissipation 9 | . . . . . . . 9 . Inventory Capacity 5 | . . 4 . . 1 . . . Protomatter Created 353 | . . 37 . 44 . . 84 188 Integrity Restored 570 | . . 57 . . . . 132 381 Core 570 | . . 57 . . . . 132 381 Protomatter Decayed 124 | . . . . 44 . . 40 40 Game ------ Seed DefenseCannonThrusters Manual? 0 Play Time 00:27:17 Cumulative 286.8 hours Start 2021.10.05 @ 11:27:58 End 2021.10.05 @ 14:14:17 Sessions 1 Manual Loads 0 Difficulty Explorer Special Mode Winter2019/RPGLIKE Game No. 86 Rogue 0 Adventurer 0 Explorer 86 Win Type - Total 26 Types 15/3/1/1/1/2/1/2/0 Lore% 72 Gallery% 85 Achievement% 80 Wizard Run 0 Options --------- ASCII 0 Keyboard 0 Movement Arrows Keybinds 0 Fullscreen 2 Font 18/SmallcapsGlow Map View 76x50 Tactical HUD 1 Map Filters NONE Filters NONE Steam 1 RUN: c845ed48-ec2b-4fe0-87d5-2e3721f3d21d